Cogmind - Beta 13 --- EXPLORER MODE // 2024.04.07 @ 01:30:12 // Winter2022/Polymind Player: Scraplet Result: Self-destructed Performance ------------- Evolutions (1) 500 Regions Visited (5) 1000 Robots Destroyed (9) 45 Value Destroyed (169) 169 Prototype IDs (0) 0 Alien Tech Used (0) 0 Bonus (2170) 2170 TOTAL SCORE: 3614 Bonus ------- Polymind Skill 2170 Cogmind --------- Core Integrity 385/400 Matter 99/100 Energy 74/75 System Corruption 0% Temperature Cool (2) Movement Flying (37) Location -7/Zion Parts ------- > --- POWER (1) -------- Light Ion Engine > --- PROPULSION (2) --- Flight Unit Flight Unit > --- UTILITY (0) ------ (None) > --- WEAPON (1) ------- Light Assault Rifle > --- INVENTORY (0) ---- (None) Peak State ------------ > --- POWER ------------ Light Ion Engine > --- PROPULSION ------- Wheel Wheel > --- UTILITY ---------- Improved Terrain Scanner Seismic Detector > --- WEAPON ----------- Mining Laser > --- INVENTORY -------- (None) [Rating: 8] Favorites ----------- Power Light Ion Engine Engine Light Ion Engine Propulsion Compact Wheel Leg Aluminum Leg Wheel Compact Wheel Hover Unit Hover Unit Flight Unit Flight Unit Utility Small Storage Unit Device Tractor Beam Storage Small Storage Unit Processor Visual Processing Unit Weapon Light Assault Rifle Energy Gun Small Laser Ballistic Gun Light Assault Rifle Special Weapon Mining Laser Build | -11 -10 -10 -9 -9 -7 ------- Run | Yrd Mat Min Mat Min Zio Slots Evolved . | . . . . . . Power . | . . . . . . Propulsion . | . . . . . . Utility . | . . . . . . Weapon . | . . . . . . Parts Attached . | . . . . . . Power . | . . . . . . Engine . | . . . . . . Core . | . . . . . . Reactor . | . . . . . . Propulsion . | . . . . . . Treads . | . . . . . . Leg . | . . . . . . Wheel . | . . . . . . Hover . | . . . . . . Flight . | . . . . . . Utility . | . . . . . . Device . | . . . . . . Storage . | . . . . . . Processor . | . . . . . . Hackware . | . . . . . . Protection . | . . . . . . Artifact . | . . . . . . Weapon . | . . . . . . Energy Gun . | . . . . . . Energy Cannon . | . . . . . . Ballistic Gun . | . . . . . . Ballistic Cannon . | . . . . . . Launcher . | . . . . . . Special Weapon . | . . . . . . Impact Weapon . | . . . . . . Slashing Weapon . | . . . . . . Piercing Weapon . | . . . . . . Special Melee Weapon . | . . . . . . Unidentified Prototypes . | . . . . . . Parts Lost . | . . . . . . Power . | . . . . . . Propulsion . | . . . . . . Utility . | . . . . . . Weapon . | . . . . . . Highest Loss Streak . | . . . . . . To Critical Strikes . | . . . . . . Average Slot Usage (%) 98 | . 94 100 100 100 100 Engine 21 | . 19 20 23 25 25 Leg 3 | . 12 . . . . Wheel 18 | . 6 40 11 . . Hover 1 | . 3 . . . . Flight 19 | . 17 . 35 50 50 Device 12 | . 14 20 5 . . Storage 8 | . . 20 5 . . Processor 1 | . 3 . . . . Energy Gun 1 | . 6 . . . . Ballistic Gun 9 | . 8 . 17 25 25 Naked Turns 12 | . 10 . . 2 . Heaviest Build 9 | 6 9 9 9 4 4 Greatest Support 32 | 20 32 32 32 8 8 Greatest Overweight (x) . | . . . . . . Average Overweight (x) . | . . . . . . Largest Inventory Capacity 4 | . 4 4 4 . . Average Capacity 1 | . . 4 1 . . Most Carried 4 | . 4 4 . . . Average Carried . | . . . . . . Final Capacity 4 | . 4 4 . . . Final Carried 4 | . 4 . . . . Class Distribution -------------------- 42% | Recycler 37% | Swarmer 9% | Grunt 5% | Tunneler 3% | Watcher Dominant Class ---------------- Swarmer | -10/Materials Recycler | -10/Mines Swarmer | -9/Materials Swarmer | -9/Mines Swarmer | -7/Zion Resources | -11 -10 -10 -9 -9 -7 ----------- Run | Yrd Mat Min Mat Min Zio Matter Collected 52 | . 38 . 14 . . Remotely . | . . . . . . Salvage Created 182 | . 161 . 21 . . Parts 20 | . 17 . 3 . . Haulers Intercepted . | . . . . . . Recyclers Shooed . | . . . . . . Parts Field Recycled . | . . . . . . Retrieved Matter . | . . . . . . Parts Self-Destructed . | . . . . . . Prevented . | . . . . . . Kills | -11 -10 -10 -9 -9 -7 ------- Run | Yrd Mat Min Mat Min Zio Combat Hostiles Destroyed 6 | . 4 . 2 . . Guns 6 | . 4 . 2 . . Classes Destroyed 3 | . 3 . . . . Watcher 3 | . 3 . . . . Swarmer 4 | . 2 . 2 . . Grunt 2 | . 2 . . . . Best Kill Streak 3 | . 3 . 2 . . Combat Bots Only 3 | . 3 . 2 . . Max Kills in Single Turn 1 | . 1 . 1 . . Gunslinging . | . . . . . . Exploded . | . . . . . . Melee . | . . . . . . Uniques/NPCs Destroyed . | . . . . . . Combat | -11 -10 -10 -9 -9 -7 -------- Run | Yrd Mat Min Mat Min Zio Hostile Shots Fired 59 | . 40 . 17 2 . Missed 27 | . 21 . 6 . . Damage Taken 209 | . 142 3 52 12 . Core 81 | . 66 . 9 6 . Absorbed by Shields . | . . . . . . Ignored by Resistances 136 | . 90 . 38 8 . Core Remaining (%) 86 | 100 . 73 . . . Volleys Fired 54 | . 39 . 15 . . Largest 1 | . 1 . 1 . . Hottest 40 | . 40 . 20 . . Shots Fired 54 | . 39 . 15 . . Gun 54 | . 39 . 15 . . Cannon . | . . . . . . Launcher . | . . . . . . Special . | . . . . . . Kinetic 50 | . 35 . 15 . . Thermal 4 | . 4 . . . . Explosive . | . . . . . . Electromagnetic . | . . . . . . Robot Hit Streak 20 | . 20 . 14 . . Robot Miss Streak 1 | . 1 . 1 . . Penetration Max . | . . . . . . Secondary Targets . | . . . . . . Shots Hit Robots 49 | . 35 . 14 . . Core Hits 21 | . 16 1 4 . . Critical Kills 1 | . 1 . . . . Critical Parts Destroyed . | . . . . . . Critical Strikes 1 | . 1 . . . . Destroy 1 | . 1 . . . . Melee Attacks . | . . . . . . Impact . | . . . . . . Slashing . | . . . . . . Piercing . | . . . . . . Sneak Attacks . | . . . . . . Combat Hostiles . | . . . . . . Follow-up Attacks . | . . . . . . Damage Inflicted 401 | . 285 7 109 . . Guns 394 | . 285 . 109 . . Cannons . | . . . . . . Explosions . | . . . . . . Melee . | . . . . . . Ramming 7 | . . 7 . . . Kinetic 359 | . 250 . 109 . . Thermal 35 | . 35 . . . . Explosive . | . . . . . . Electromagnetic . | . . . . . . Impact . | . . . . . . Slashing . | . . . . . . Piercing . | . . . . . . Highest Corruption . | . . . . . . Average Corruption . | . . . . . . Corruption Purged . | . . . . . . Corruption Blocked . | . . . . . . Overload Shots . | . . . . . . Overflow Damage . | . . . . . . Projectiles . | . . . . . . Explosions . | . . . . . . Melee . | . . . . . . Knockbacks . | . . . . . . Impact . | . . . . . . Kinetic . | . . . . . . Secondary . | . . . . . . Self-Inflicted Damage 3 | . . 3 . . . Shots . | . . . . . . Rammed 1 | . . 1 . . . Targets Rammed 1 | . . 1 . . . Kicked . | . . . . . . Crushed . | . . . . . . Highest Temperature 112 | . 112 . 18 . . Average Temperature 35 | . 41 . 9 . . Received Heat Transfer 96 | . 96 . . . . Siege Activations . | . . . . . . Robots Corrupted . | . . . . . . Combat Hostiles . | . . . . . . Parts Fried . | . . . . . . Impact Corruptions . | . . . . . . Robots Melted . | . . . . . . Combat Hostiles . | . . . . . . Parts Melted . | . . . . . . Heat Transferred 75 | . 75 . . . . Parts Sabotaged . | . . . . . . Parts Stolen . | . . . . . . Parts Stripped . | . . . . . . Power Chain Reactions . | . . . . . . Alert | -11 -10 -10 -9 -9 -7 ------- Run | Yrd Mat Min Mat Min Zio Peak Influence 342 | . 342 94 70 19 . Initial 94 | . . 94 . 19 . Average 94 | . 178 73 34 18 . Maximum Alert Level 1 | . 1 . . . . Low Security (%) 81 | 100 44 100 100 100 . Level 1 18 | . 55 . . . . Level 2 . | . . . . . . Level 3 . | . . . . . . Level 4 . | . . . . . . Level 5 . | . . . . . . High Security . | . . . . . . Max Security . | . . . . . . Squads Dispatched 2 | . 1 . 1 . . Investigation 1 | . 1 . . . . Extermination . | . . . . . . Reinforcement 1 | . . . 1 . . Assault . | . . . . . . Garrison . | . . . . . . Intercept . | . . . . . . Searches Triggered . | . . . . . . Construction Impeded . | . . . . . . Haulers Reinforced . | . . . . . . Active Scanning Responses . | . . . . . . Cargo Convoy Interrupts . | . . . . . . Stealth | -11 -10 -10 -9 -9 -7 --------- Run | Yrd Mat Min Mat Min Zio Distress Signals 2 | . 1 . . 1 . Communications Jammed . | . . . . . . Distress Signals . | . . . . . . Times Spotted 23 | . 14 . 3 6 . Peak Tracking Total 7 | . 3 . 2 7 . Tactical Retreats 1 | . 1 . . . . Traps | -11 -10 -10 -9 -9 -7 ------- Run | Yrd Mat Min Mat Min Zio Traps Triggered . | . . . . . . Indirectly . | . . . . . . Trap Hack Attempts . | . . . . . . Triggered . | . . . . . . Disarmed . | . . . . . . Reprogrammed . | . . . . . . Reused . | . . . . . . Traps Extracted . | . . . . . . Installed . | . . . . . . Triggered . | . . . . . . Machines | -11 -10 -10 -9 -9 -7 ---------- Run | Yrd Mat Min Mat Min Zio Machines Disabled . | . . . . . . Max in Single Turn . | . . . . . . Machines Repaired . | . . . . . . Machines Dismantled . | . . . . . . Machines Sabotaged . | . . . . . . Overloaded Fab Kills . | . . . . . . Hacking | -11 -10 -10 -9 -9 -7 --------- Run | Yrd Mat Min Mat Min Zio Machines Accessed 4 | . 4 . . . . Terminals 4 | . 4 . . . . Fabricators . | . . . . . . Repair Stations . | . . . . . . Recycling Units . | . . . . . . Scanalyzers . | . . . . . . Garrison Access . | . . . . . . Total Hacks 10 | . 10 . . . . Successful 5 | . 5 . . . . Failed 5 | . 5 . . . . Catastrophic 1 | . 1 . . . . Database Lockouts . | . . . . . . Manual 12 | . 10 . . . 2 Terminals 10 | . 10 . . . . Fabricators . | . . . . . . Repair Stations . | . . . . . . Recycling Units . | . . . . . . Scanalyzers . | . . . . . . Garrison Access . | . . . . . . Terminal Hacks 3 | . 3 . . . . Level Access Points 1 | . 1 . . . . Branch Access Points 1 | . 1 . . . . Terminal Index 1 | . 1 . . . . Fabricator Hacks . | . . . . . . Repair Station Hacks . | . . . . . . Recycling Unit Hacks . | . . . . . . Scanalyzer . | . . . . . . Garrison Access Hacks . | . . . . . . Unauthorized Hacks 2 | . 2 . . . . Terminals 2 | . 2 . . . . Botnet 2 | . 2 . . . . Fabricators . | . . . . . . Repair Stations . | . . . . . . Recycling Units . | . . . . . . Scanalyzers . | . . . . . . Garrison Access . | . . . . . . Data Cores Recovered . | . . . . . . Used . | . . . . . . Hacking Detections 3 | . 3 . . . . Full Trace Events 2 | . 2 . . . . Feedback Events . | . . . . . . Feedback Blocked . | . . . . . . Robot Schematics Acquired . | . . . . . . Robots Built . | . . . . . . Authchips . | . . . . . . Time . | . . . . . . Total Robot Build Rating . | . . . . . . Part Schematics Acquired . | . . . . . . Parts Built . | . . . . . . Authchips . | . . . . . . Time . | . . . . . . Total Part Build Rating . | . . . . . . Parts Repaired . | . . . . . . Time . | . . . . . . Parts Recycled . | . . . . . . Recycled Matter . | . . . . . . Retrieved Matter . | . . . . . . Retrieved Components . | . . . . . . Parts Scanalyzed . | . . . . . . Part Schematics Acquired . | . . . . . . Parts Damaged . | . . . . . . Bothacking | -11 -10 -10 -9 -9 -7 ------------ Run | Yrd Mat Min Mat Min Zio Used RIF Installer . | . . . . . . Robots Hacked 6 | . 4 . 1 1 . Non-combat 2 | . 2 . . . . Combat 4 | . 2 . 1 1 . Robot Hacks Applied 7 | . 5 . 1 1 . find_recycling 1 | . 1 . . . . map_route 1 | . 1 . . . . mark_security 1 | . 1 . . . . find_shortcuts 4 | . 2 . 1 1 . Relay Couplers Released . | . . . . . . Fabnet Peak Effective % . | . . . . . . Robots Rewired . | . . . . . . Allies Hacked . | . . . . . . Hacks Repelled . | . . . . . . Allies | -11 -10 -10 -9 -9 -7 -------- Run | Yrd Mat Min Mat Min Zio Total Allies . | . . . . . . Largest Group . | . . . . . . Highest-Rated Group . | . . . . . . Highest-Rated Ally . | . . . . . . Total Orders . | . . . . . . Ally Attacks . | . . . . . . Total Damage . | . . . . . . Kills . | . . . . . . Allies Corrupted . | . . . . . . Allies Melted . | . . . . . . Intel | -11 -10 -10 -9 -9 -7 ------- Run | Yrd Mat Min Mat Min Zio Robot Analysis Total 5 | 1 4 . . . . Derelict Logs Recovered 1 | . . . . . 1 Drone Launches . | . . . . . . Drone Recoveries . | . . . . . . Exploration | -11 -10 -10 -9 -9 -7 ------------- Run | Yrd Mat Min Mat Min Zio Turns Passed 1371 | 111 380 510 71 83 216 Spaces Moved 1488 | 96 431 456 70 223 212 Core 51 | 37 10 . . 4 . Treads . | . . . . . . Legs 86 | . 86 . . . . Wheels 614 | 59 73 456 26 . . Hover 76 | . 76 . . . . Flight 661 | . 186 . 44 219 212 Fastest Speed 37 | 50 37 100 37 37 37 Average Speed 67 | 68 64 100 60 37 37 Slowest Speed 120 | 80 120 100 100 50 37 Overloaded Moves . | . . . . . . Propulsion Burnouts . | . . . . . . Robots Hopped 3 | . 3 . . . . Cave-ins Triggered . | . . . . . . Exploration Rate (%) 30 | 5 59 39 11 41 27 Regions Visited 5 Branch Regions 3 Pre-discovered Areas 1 | . . . . . 1 Known Exits Taken 4 | 1 1 1 1 . . Unknown Exits Taken 1 | . . . . 1 . Scrap Searched . | . . . . . . Spaces Dug . | . . . . . . Terrain Destroyed . | . . . . . . Melee . | . . . . . . Projectile . | . . . . . . AOE . | . . . . . . Terrain Rammed . | . . . . . . Walls Destroyed . | . . . . . . Machines Disabled . | . . . . . . Actions | -11 -10 -10 -9 -9 -7 --------- Run | Yrd Mat Min Mat Min Zio Total 1807 | 141 497 512 86 222 349 Wait 214 | . 30 45 2 . 137 Move 1477 | 95 424 455 69 222 212 Hop 3 | . 3 . . . . Pick Up 2 | . . 2 . . . Fast Attach . | . . . . . . Attach . | . . . . . . Detach . | . . . . . . Swap . | . . . . . . Drop 6 | . . 6 . . . Fire 54 | . 39 . 15 . . Melee . | . . . . . . Ram 1 | . . 1 . . . Kick . | . . . . . . Crush . | . . . . . . Escape Stasis . | . . . . . . Rewire 4 | . 1 3 . . . Trap . | . . . . . . Miscellaneous 46 | 46 . . . . . Route ------- -11/Scrapyard -10/Materials (discovered 4 exits: *Mat x3 / *Min) -10/Mines (discovered 2 exits: *Mat / *Sub) -9/Materials -9/Mines -7/Zion History --------- Turn | Location | Event 2 | -11/Scrapyard | Met Revision 17 6 | -11/Scrapyard | Identified exit to Materials 6 | -11/Scrapyard | Discovered exit to Materials (range 16) 112 | -11/Scrapyard | Entered Materials 291 | -10/Materials | Identified exit to Materials 318 | -10/Materials | Identified exit to Mines 318 | -10/Materials | Discovered exit to Mines (range 7) 492 | -10/Materials | Entered Mines 647 | -10/Mines | Received a Rocket Launcher from a helpful Derelict 732 | -10/Mines | Discovered exit to Materials (range 7) 999 | -10/Mines | Identified exit to Subcaves 999 | -10/Mines | Discovered exit to Subcaves (range 7) 1002 | -10/Mines | Entered Materials 1064 | -9/Materials | Identified exit to Mines 1064 | -9/Materials | Discovered exit to Mines (range 16) 1073 | -9/Materials | Entered Mines 1074 | -9/Mines | A Derelict revealed a hidden shortcut to a safe place 1126 | -9/Mines | Assembled infested the area 1156 | -9/Mines | Entered Zion 1256 | -7/Zion | Learned location of Extension (-4) 1272 | -7/Zion | Received a hallucinogenic algorithm 1372 | -7/Zion | Self-destructed Last Messages --------------- World map updated: -4/Extension. C1-0IA(z): Whoa man, this is wicked cool... ...are you blue?! Symbols and butterflies everywhere... No idea who wrote this thing, but you've gotta try it. Find yourself a terminal and \\P9CJ the hell out of it. There used to be one around here somewhere. Squirrel! 01272_ Connecting with Zion Terminal... 01272_ Current location identified: Zion 01272_ System feedback flow inverted... 01274_ C1-0IA(z): "Shoes! Shoes everywhere! Do you see them, too?!" 01283_ Connecting with Zion Terminal... 01283_ System feedback flow inverted... 01285_ C1-0IA(z): "Shoes! Shoes everywhere! Do you see them, too?!" 01369_ D6-O32(z) heat spikes uncontrollably. Map ----- +----------------------------------------------------+ | ?????????????????????????????????????????????????? | | ?????????????????????????????????????????????????? | | ?????????????????????????????????????????????????? | | ?????????????????????????????????????????????????? | | ?????????????????????????????????????????????????? | | ?????????????????????????????????????????????????? | | ?????????????????????????????????????????????????? | | ?????????????????????????????????????????????????? | | ?????????????????????????????????????????????????? | | ?????????????????????????????????????????????????? | | ?????????????????????????????????????????????????? | | ?????????????????????????????????????????????????? | | ?????????????????????????????????????????????????? | | ?????????????????????????????????????????????????? | | ?????????????????????????????????????????????????? | | ?????????????????????????????????????????????????? | | ?????????????????????????????????????????????????? | | ??????????????????? ???????????????####??????????? | | ??????????????????? ??????????????#X ##?????????? | | ??????????????????#? ??????????#### #?????????? | | ??????????????????#"#"###?#????##"## ###???????? | | ?????????????????##""""" # ???##""" ###?????? | | ?????????????????#"" #??##"""""" "#?????? | | ?????????????????""" ####""" ####### | | ????????????????"""" #""" """#"# | | ???????????????" ""s #"" """"# | | ???????????????? "" """ "" "" | | ?????????????????""" """ """" " | | ???????????????????""" " """"" " | | ???????????????????#"" "" """ """" "" | | ???????????????????#""" "" """z """#" """ | | ???????????????????# """ """""" """ | | ??????????????????#" $$$z$$$ """" """"" "" | | ??????????????????"# """" """" "" | | ??????????????????"" $$$ $$$ ""#""" "" "" | | ??????????????????" c """"#"""" """ | | ?????????????????? <<< $$$ """""""#"" """ ""# | | ????????????????? <$< ?""#"" """" ""# | | ????????????????? ?""< $$$ """#" """" "## | | ??????????????????""??? """ """"" """" """ | | ???????????????????????? """" ""# | | ???????????????????????? """ """ | | ???????????????????????? "" | | ????????????????????????????#""" """"" """ | | ?????????????????????????????"""" " """""""#" | | ??????????????????????????????""" " "###? | | ?????????????????????????????"""" " ""#??? | | ??????????????????????????????#"" ""###? | | ??????????????????????????????"#" """## | | ?????????????????????????????"""" ""#" | +----------------------------------------------------+ Best States ------------- Heat Dissipation 25 Energy Generation 15 Energy Capacity 200 Matter Stores 100 Matter Capacity 100 Sight Range 18 Robot Scan Range 14 Terrain Scan Range 16 Terrain Scan Density 10 Resistance: KI 35 Resistance: TH 35 Resistance: EX 35 Resistance: EM 35 Resistance: I 35 Resistance: S 35 Resistance: P 35 Evasion (%) 62 Offensive Hacking 20 Item Schematics ----------------- None Robot Schematics ------------------ None Fabricated ------------ Nothing Alien Tech Used ----------------- None Achievements -------------- Armchair Analyst Challenges ------------ None Polymind | -11 -10 -10 -9 -9 -7 ---------- Run | Yrd Mat Min Mat Min Zio Hosts 7 | 1 4 . 1 1 . Combat Hostiles 4 | . 2 . 1 1 . Allies . | . . . . . . Unique Host Classes 5 | 1 4 . . . . Average Host Suspicion 57 | . 82 74 65 41 . Unsuspicious Activity 248 | 232 13 . . 3 . Returns to Shadow . | . . . . . . Fuzzy Dispatches . | . . . . . . Protomatter Created 39 | . 17 5 5 12 . Used 55 | 5 38 . 6 6 . Decayed 5 | . 5 . . . . Highest Spend 15 | 5 15 . 6 6 . Top 5 Hosts by Kills: S-10 Pest (-10/Materials: 3) S-10 Pest (-9/Materials: 2) G-34 Mercenary (-10/Materials: 1) Game ------ Seed DispersionConcussiveClaw Manual? 0 Play Time 00:15:41 Cumulative 25.5 hours Start 2024.04.07 @ 01:00:05 End 2024.04.07 @ 01:30:12 Sessions 1 Manual Loads 0 Difficulty Explorer Special Mode Winter2022/Polymind Game No. 14 Rogue 0 Adventurer 2 Explorer 12 Win Type - Total 0 Types 0/0/0/0/0/0/0/0/0 Lore% 7 Gallery% 23 Achievement% 32 Wizard Run 0 Options --------- Layout 1 ASCII 1 Keyboard 0 Movement Arrows Keybinds 0 Fullscreen 1 Font 16/SmallcapsGlow Map View 50x40 Zoom Use 0% Tactical HUD 1 Map Filters NONE Filters NONE Steam SD RUN: 000b3ab8-27e0-43cc-8b5f-47d538aea214